fUST/lending_fUST_20260220
["ID","MTS","AMOUNT","RATE_DAILY","PERIOD"]
[406000001,1771518638650,-895.85200474,0.00014247,2]
[406000002,1771518638660,-1000.0,0.00014247,2]
[406000003,1771518638670,-1000.0,0.00014247,2]
[406000004,1771518638679,-500.0,0.00014247,2]
[406000005,1771518638687,-500.0,0.00014247,2]
[406000006,1771518638696,-500.0,0.00014247,2]
[406000007,1771518638710,-1000.0,0.00014247,2]
[406000008,1771518638719,-500.0,0.00014247,2]
[406000009,1771518638728,-500.0,0.00014247,2]
[406000010,1771518638737,-500.0,0.00014247,2]
[406000011,1771518638747,-500.0,0.00014247,2]
[406000012,1771518638756,-500.0,0.00014247,2]
[406000013,1771518638765,-500.0,0.00014247,2]
[406000014,1771518638775,-500.0,0.00014247,2]
[406000015,1771518638784,-1000.0,0.00014247,2]
[406000017,1771518638793,-500.0,0.00014247,2]
[406000019,1771518638802,-660.84738144,0.00014453,2]
[406000021,1771518638812,-1189.52528659,0.00014453,2]
[406000023,1771518638821,-2114.71162061,0.00014453,2]
[406000025,1771518638830,-3154.434708,0.00014583,2]
[406000027,1771518638840,-1187.25769755,0.00014795,2]
[406000029,1771518638849,-500.0,0.00014843,2]
[406000031,1771518638859,-390.0539866,0.00014844,2]
[406000033,1771518638868,-1748.1006883,0.00014844,2]
[406000035,1771518638878,-8573.6954934,0.00014844,2]
[406000037,1771518638888,-388.5823887,0.00014844,2]
[406000039,1771518638898,-150.69889681,0.000149,2]
[406000041,1771518638908,-602.79558725,0.000149,2]
[406000043,1771518638918,-1356.2900713,0.000149,2]
[406000045,1771518638928,-1616.09513884,0.000149,2]
[406000047,1771518638938,-278.17661,0.00015068,2]
[406000050,1771518638948,-3154.434708,0.00015196,2]
[406000052,1771518638959,-151.0,0.00015342,4]
[406000053,1771518638969,-151.0,0.00015492,2]
[406000056,1771518638980,-189.55006332,0.00015492,2]
[406000057,1771518638989,-888.0,0.00015492,2]
[406000059,1771518639000,-250.0,0.00015492,2]
[406000061,1771518639010,-250.0,0.00015492,2]
[406000064,1771518639020,-841.18707038,0.00015492,2]
[406000065,1771518639030,-250.0,0.00015492,2]
[406000068,1771518639041,-500.0,0.00015492,2]
[406000069,1771518639051,-250.0,0.00015492,2]
[406000071,1771518639061,-181.08010149,0.00015492,2]
[406000074,1771518639071,-250.0,0.00015492,2]
[406000076,1771518639083,-500.0,0.00015492,2]
[406000078,1771518639092,-187.78006525,0.00015492,2]
[406000080,1771518639102,-250.0,0.00015492,2]
[406000082,1771518639111,-500.0,0.00015492,2]
[406000084,1771518639120,-194.72792766,0.00015492,2]
[406000086,1771518639129,-250.0,0.00015492,2]
[406000087,1771518639140,-500.0,0.00015492,2]
[406000089,1771518639149,-250.0,0.00015492,2]
[406000091,1771518639159,-201.93286099,0.00015492,2]
[406000093,1771518639169,-250.0,0.00015492,2]
[406000094,1771518639178,-500.0,0.00015492,2]
[406000096,1771518639188,-209.40437684,0.00015492,2]
[406000098,1771518639197,-250.0,0.00015492,2]
[406000100,1771518639206,-500.0,0.00015492,2]
[406000102,1771518639216,-217.15233878,0.00015492,2]
[406000104,1771518639226,-250.0,0.00015492,2]
[406000106,1771518639236,-500.0,0.00015492,2]
[406000108,1771518639245,-250.0,0.00015492,2]
[406000110,1771518639255,-225.18697532,0.00015492,2]
[406000112,1771518639265,-500.0,0.00015492,2]
[406000114,1771518639275,-250.0,0.00015492,2]
[406000116,1771518639284,-233.51889341,0.00015492,2]
[406000118,1771518639294,-500.0,0.00015492,2]
[406000120,1771518639304,-250.0,0.00015492,2]
[406000122,1771518639313,-242.15909246,0.00015492,2]
[406000124,1771518639323,-500.0,0.00015492,2]
[406000126,1771518639332,-250.0,0.00015492,2]
[406000128,1771518639342,-251.11897888,0.00015492,2]
[406000130,1771518639351,-500.0,0.00015492,2]
[406000132,1771518639360,-260.4103811,0.00015492,2]
[406000134,1771518639369,-500.0,0.00015492,2]
[406000136,1771518639378,-270.0455652,0.00015492,2]
[406000138,1771518639388,-500.0,0.00015492,2]
[406000139,1771518639397,-280.03725112,0.00015492,2]
[406000141,1771518639406,-500.0,0.00015492,2]
[406000143,1771518639416,-290.39862941,0.00015492,2]
[406000145,1771518639425,-500.0,0.00015492,2]
[406000147,1771518639435,-301.1433787,0.00015492,2]
[406000149,1771518639444,-250.0,0.00015492,2]
[406000151,1771518639454,-720.0,0.00015506,2]
[406000153,1771518639464,-5197.91232017,0.000156,2]
[406000155,1771518639473,-258.0,0.00015616,2]
[406000157,1771518639483,-500.0,0.00015809,2]
[406000160,1771518639493,-3154.434708,0.0001581,2]
[406000162,1771518639503,-386.43758772,0.00015941,2]
[406000164,1771518639512,-3154.434708,0.00016424,2]
[406000166,1771518639521,-150.0,0.00016438,2]
[406000168,1771518639530,-8573.6954934,0.00016728,2]
[406000170,1771518639542,-1748.1006883,0.00016785,2]
[406000172,1771518639552,-390.0539866,0.00016825,2]
[406000174,1771518639561,-488.79937364,0.00016861,2]
[406000318,1771518641216,-399.20062636,0.00016861,2]
[406000319,1771518641225,-200.0,0.00016986,2]
[406000320,1771518641235,-500.0,0.00016989,2]
[406000321,1771518641244,-500.0,0.00016989,2]
[406000322,1771518641253,-500.0,0.00016989,2]
[406000323,1771518641263,-546.38719593,0.00016989,2]
[406000324,1771518641272,-31559.3632538,0.0001699,2]
[406000339,1771518646884,-386.43758772,0.00015144,2]
[406000340,1771518646894,-250.0,0.00015492,2]
[406000341,1771518646903,-250.0,0.00015492,2]
[406000342,1771518646912,-250.0,0.00015492,2]
[406000343,1771518646921,-250.0,0.00015492,2]
[406000344,1771518646931,-661.532995,0.00016692,2]
[406000345,1771518646942,-4338.467005,0.00016692,2]
[406000346,1771518646951,-12774.43930412,0.0001699,2]
[406000347,1771518646962,-1316.27915126,0.0001699,2]
[406000349,1771519366083,-1598.164006,0.00026,30]
[406000350,1771519366110,-64498.98359881,0.00027,30]
[406000351,1771519366141,-1000.0,0.00027864,30]
[406000352,1771519366168,-1000.0,0.00027864,30]
[406000353,1771519366193,-10146.59150099,0.00028,30]
[406000354,1771519366219,-278.17661,0.00028767,60]
[406000355,1771519366245,-1084.64,0.0003,30]
[406000356,1771519366272,-1084.64,0.000309,30]
[406000357,1771519366297,-1000.0,0.0003175,120]
[406000358,1771519366322,-1084.64,0.000318,30]
[406000359,1771519366346,-37434.89822664,0.00032,120]
[406000360,1771519366372,-1084.64,0.000327,120]
[406000361,1771519366399,-999.0,0.00032876,120]
[406000362,1771519366426,-349.67,0.000332,30]
[406000363,1771519366453,-519.459,0.00033834,37]
[406000364,1771519366478,-194.44206983,0.00033834,37]
[406000365,1771519366504,-474.0,0.00034173,120]
[406000366,1771519366531,-999.0,0.00034246,120]
[406000367,1771519366562,-999.0,0.00035616,120]
[406000368,1771519366588,-349.67,0.000365,30]
[406000369,1771519366614,-999.0,0.00036986,120]
[406000370,1771519366640,-580.60079619,0.00037753,120]
[406000371,1771519366800,-999.0,0.00038356,120]
[406000372,1771519366828,-349.67,0.000392,30]
[406000373,1771519366853,-999.0,0.00039726,120]
[406000374,1771519366879,-1031.0,0.0004,30]
[406000375,1771519366912,-1309.46,0.0004,120]
[406000376,1771519366941,-2000.0,0.0004,120]
[406000377,1771519366968,-462.53,0.00040519,120]
[406000378,1771519366996,-489.19,0.00040993,120]
[406000379,1771519367021,-1029.0,0.00041,30]
[406000380,1771519367053,-999.0,0.00041095,120]
[406000381,1771519367079,-50000.0,0.00041096,120]
[406000382,1771519367104,-242.23,0.00041096,120]
[406000383,1771519367129,-162.820322,0.000411,120]
[406000384,1771519367154,-271.06401141,0.000411,120]
[406000385,1771519367178,-210.99698531,0.000411,120]
[406000386,1771519367202,-471.71162321,0.000411,120]
[406000387,1771519367227,-151.0,0.00041261,120]
[406000388,1771519367254,-318.995632,0.00041261,120]
[406000389,1771519367280,-318.995632,0.00041261,120]
[406000390,1771519367305,-318.995632,0.00041261,120]
[406000391,1771519367330,-318.995632,0.00041261,120]
[406000392,1771519367362,-349.67,0.000418,30]
[406000393,1771519367388,-523.8,0.00041917,30]
[406000394,1771519367415,-162.820322,0.000423,120]
[406000395,1771519367439,-271.06401141,0.000423,120]
[406000396,1771519367464,-471.71162321,0.000423,120]
[406000397,1771519367491,-999.0,0.00042465,120]
[406000398,1771519367514,-5000.0,0.000425,120]
[406000399,1771519367538,-523.8,0.00042602,33]
[406000400,1771519367565,-489.19,0.00042702,120]
[406000401,1771519367591,-523.8,0.00043287,36]
[406000402,1771519367615,-162.820322,0.000436,120]
[406000403,1771519367642,-271.06401141,0.000436,120]
[406000404,1771519367666,-471.71162321,0.000436,120]
[406000405,1771519367691,-500.0,0.00043726,60]
[406000406,1771519367716,-500.0,0.00043726,60]
[406000407,1771519367740,-250.0,0.00043726,60]
[406000408,1771519367763,-158.38337065,0.00043726,60]
[406000409,1771519367793,-157.32340499,0.00043726,60]
[406000410,1771519367827,-189.40689134,0.00043726,60]
[406000411,1771519367851,-150.0,0.00043726,60]
[406000412,1771519367875,-233.09442873,0.00043726,60]
[406000413,1771519367904,-150.0,0.00043726,60]
[406000414,1771519367929,-165.1231532,0.00043726,60]
[406000415,1771519367956,-282.05897855,0.00043726,60]
[406000416,1771519367983,-500.0,0.00043781,60]
[406000417,1771519368008,-500.0,0.00043781,60]
[406000418,1771519368033,-186.170805,0.00043781,60]
[406000419,1771519368059,-150.0,0.00043781,60]
[406000420,1771519368085,-500.0,0.00043835,80]
[406000421,1771519368114,-999.0,0.00043835,120]
[406000422,1771519368145,-161.31310307,0.00043836,60]
[406000423,1771519368175,-289.94143347,0.00043836,60]
[406000424,1771519368203,-200.0,0.00043836,60]
[406000425,1771519368235,-523.8,0.00043972,39]
[406000426,1771519368264,-489.19,0.00044412,120]
[406000427,1771519368293,-200.0,0.00044421,120]
[406000428,1771519368324,-169.03,0.00044571,30]
[406000429,1771519368354,-523.8,0.00044657,42]
[406000430,1771519368384,-500.0,0.00044657,85]
[406000431,1771519368418,-925.05,0.0004486,120]
[406000432,1771519368447,-162.820322,0.000449,120]
[406000433,1771519368475,-271.06401141,0.000449,120]
[406000434,1771519368501,-471.71162321,0.000449,120]
[406000435,1771519368529,-8166.0,0.00045,120]
[406000436,1771519368560,-999.0,0.00045205,120]
[406000437,1771519368589,-523.8,0.00045342,45]
[406000438,1771519368616,-500.0,0.00045479,90]
[406000439,1771519368645,-523.8,0.00046027,48]
[406000440,1771519368671,-489.19,0.00046121,120]
[406000441,1771519368700,-271.06401141,0.000462,120]
[406000442,1771519368729,-471.71162321,0.000462,120]
[406000443,1771519368759,-500.0,0.00046301,95]
[406000444,1771519368789,-999.0,0.00046575,120]
[406000445,1771519368818,-523.8,0.00046712,51]
[406000446,1771519368850,-500.0,0.00047123,100]
[406000447,1771519368877,-523.8,0.00047397,54]
[406000448,1771519368907,-819.5334,0.00047449,30]
[406000449,1771519368934,-489.19,0.00047831,120]
[406000450,1771519368967,-500.0,0.00047945,105]
[406000451,1771519368999,-999.0,0.00047945,120]
[406000452,1771519369027,-523.8,0.00048082,57]
[406000453,1771519369057,-523.8,0.00048767,60]
[406000454,1771519369086,-500.0,0.00048767,110]
[406000455,1771519369115,-1387.58,0.00049202,120]
[406000456,1771519369143,-531.09111026,0.00049314,30]
[406000457,1771519369171,-999.0,0.00049315,120]
[406000458,1771519369198,-523.8,0.00049452,63]
[406000459,1771519369225,-489.19,0.0004954,120]
[406000460,1771519369255,-500.0,0.00049589,115]
[406000461,1771519369286,-300.0,0.000499,120]
[406000462,1771519369317,-384.84139748,0.0005,120]
[406000463,1771519369347,-200.0,0.0005,120]
[406000464,1771519369379,-200.0,0.0005,120]
[406000465,1771519369409,-250.0,0.00050135,66]
[406000466,1771519369445,-500.0,0.00050135,66]
[406000467,1771519369475,-181.08010149,0.00050135,66]
[406000468,1771519369504,-888.0,0.00050135,66]
[406000469,1771519369532,-153.62370215,0.00050135,66]
[406000470,1771519369560,-523.8,0.00050136,66]
[406000471,1771519369589,-151.0,0.00050301,120]
[406000472,1771519369616,-151.0,0.00050301,120]
[406000473,1771519369782,-297.88,0.00050301,120]
[406000474,1771519369810,-500.0,0.0005041,120]
[406000475,1771519369835,-250.0,0.00050439,30]
[406000476,1771519369859,-2000.0,0.00050439,30]
[406000477,1771519369885,-500.0,0.00050439,30]
[406000478,1771519369918,-174.61919141,0.00050439,30]
[406000479,1771519369944,-888.0,0.00050439,30]
[406000480,1771519369970,-250.0,0.00050439,30]
[406000481,1771519369997,-999.0,0.00050684,120]
[406000482,1771519370023,-2000.0,0.0005082,69]
[406000483,1771519370049,-250.0,0.0005082,69]
[406000484,1771519370075,-500.0,0.0005082,69]
[406000485,1771519370101,-888.0,0.0005082,69]
[406000486,1771519370129,-168.3888056,0.0005082,69]
[406000487,1771519370153,-250.0,0.0005082,69]
[406000488,1771519370178,-523.8,0.00050821,69]
[406000489,1771519370204,-888.0,0.00050989,90]
[406000490,1771519370229,-2000.0,0.00050989,90]
[406000491,1771519370255,-250.0,0.00050989,90]
[406000492,1771519370281,-500.0,0.00050989,90]
[406000493,1771519370308,-162.380719,0.00050989,90]
[406000494,1771519370335,-380.82049298,0.00050989,90]
[406000495,1771519370362,-250.0,0.00050989,90]
[406000496,1771519370387,-150.0,0.00051,85]
[406000497,1771519370413,-200.0,0.00051,120]
[406000498,1771519370439,-888.0,0.00051069,85]
[406000499,1771519370464,-2000.0,0.00051069,85]
[406000500,1771519370489,-250.0,0.00051069,85]
[406000501,1771519370515,-500.0,0.00051069,85]
[406000502,1771519370542,-156.587,0.00051069,85]
[406000503,1771519370567,-250.0,0.00051069,85]
[406000504,1771519370590,-250.0,0.00051069,85]
[406000505,1771519370617,-888.0,0.00051099,120]
[406000506,1771519370643,-273.32182778,0.00051099,120]
[406000507,1771519370671,-267.42232408,0.00051099,120]
[406000508,1771519370697,-2000.0,0.00051099,120]
[406000509,1771519370722,-250.0,0.00051099,120]
[406000510,1771519370747,-500.0,0.00051099,120]
[406000511,1771519370774,-151.0,0.00051099,120]
[406000512,1771519370800,-250.0,0.00051099,120]
[406000513,1771519370826,-250.0,0.00051099,120]
[406000514,1771519370850,-157536.52526761,0.000511,120]
[406000515,1771519370877,-151.0,0.000511,120]
[406000516,1771519370905,-500.0,0.000511,30]
[406000517,1771519370931,-86292.0,0.00051111,120]
[406000518,1771519370960,-500.0,0.00051232,120]
[406000519,1771519370987,-489.19,0.0005125,120]
[406000520,1771519371012,-523.8,0.00051506,72]
[406000521,1771519371038,-150.0,0.0005178,36]
[406000522,1771519371064,-150.0,0.0005178,36]
[406000523,1771519371089,-150.0,0.0005178,36]
[406000524,1771519371114,-174.0,0.0005178,36]
[406000525,1771519371138,-100000.0,0.000519,120]
[406000526,1771519371162,-1000.0,0.00051999,120]
[406000527,1771519371186,-2025.82,0.00052,90]
[406000528,1771519371211,-1000.0,0.00052,120]
[406000529,1771519371237,-11125.28171564,0.00052,120]
[406000530,1771519371262,-1000.0,0.00052,120]
[406000531,1771519371287,-200.0,0.00052,120]
[406000532,1771519371311,-161.579883,0.00052,120]
[406000533,1771519371337,-318.995632,0.00052,120]
[406000534,1771519371364,-318.995632,0.00052,120]
[406000535,1771519371389,-318.995632,0.00052,120]
[406000536,1771519371415,-318.995632,0.00052,120]
[406000537,1771519371439,-500.0,0.00052054,120]
[406000538,1771519371464,-999.0,0.00052054,120]
[406000539,1771519371491,-1000.0,0.00052054,120]
[406000540,1771519371516,-351.89253939,0.00052054,120]
[406000541,1771519371540,-2000.0,0.00052055,120]
[406000542,1771519371576,2037.27590771,0.00051955,30]
[406000543,1771519371643,1150.05,0.00052055,120]
[406000544,1771519371692,466.86,0.0004,30]
[406000545,1771519371721,466.86,0.00042,30]
[406000546,1771519371751,260.41,0.0004,30]
[406000547,1771519371785,466.86,0.000441,30]
[406000548,1771519371814,260.41,0.00042,30]
[406000549,1771519371851,466.86,0.00046305,30]
[406000550,1771519371878,260.41,0.000441,30]
[406000551,1771519371919,260.41,0.00046305,30]
[406000552,1771519372725,2000.0,0.00052055,30]
[406000553,1771519444637,5000.0,0.000156,120]
[406000554,1771519452816,5000.0,0.000156,120]
[406000555,1771519467723,5000.0,0.000156,120]
[406000556,1771519475904,5000.0,0.000156,120]
[406000557,1771519627145,-560.37959154,8.733e-05,2]
[406000558,1771519747120,-515.23680846,8.474e-05,2]
[406000559,1771519747140,-5000.0,8.56e-05,2]
[406000560,1771519747160,-300.0,8.645e-05,2]
[406000561,1771519747179,-5000.0,8.646e-05,2]
[406000562,1771519747199,-208.0,8.999e-05,2]
[406000563,1771519747220,-300.0,8.999e-05,2]
[406000564,1771519747241,-1200.0,8.999e-05,2]
[406000565,1771519747263,-300.11805253,8.999e-05,2]
[406000566,1771519747286,-205.25146432,8.999e-05,2]
[406000567,1771519747310,-500.0,8.999e-05,2]
[406000568,1771519747333,-500.0,8.999e-05,2]
[406000569,1771519747361,-80367.87481623,9e-05,2]
[406000570,1771519750132,-18570.81046978,9e-05,2]
[406000571,1771519753092,-4900.0,9e-05,2]
[406000572,1771519758119,-500.0,8.999e-05,2]
[406000573,1771519758141,-500.0,8.999e-05,2]
[406000574,1771519758162,-62746.59471399,9e-05,2]
[406000575,1771519758183,-300.0,9.179e-05,2]
[406000576,1771519758204,-300.0,9.179e-05,2]
[406000577,1771519758225,-300.0,9.179e-05,2]
[406000578,1771519758248,-300.0,9.179e-05,2]
[406000579,1771519758270,-300.0,9.179e-05,2]
[406000580,1771519758293,-300.0,9.179e-05,2]
[406000581,1771519758314,-300.0,9.179e-05,2]
[406000582,1771519758335,-300.0,9.179e-05,2]
[406000583,1771519758356,-300.0,9.179e-05,2]
[406000584,1771519758378,-300.0,9.179e-05,2]
[406000585,1771519758398,-300.0,9.179e-05,2]
[406000586,1771519758419,-300.0,9.179e-05,2]
[406000587,1771519758441,-300.0,9.179e-05,2]
[406000588,1771519758461,-300.0,9.179e-05,2]
[406000589,1771519758481,-300.0,9.179e-05,2]
[406000590,1771519758501,-600.0,9.179e-05,2]
[406000591,1771519758520,-420.0,9.51e-05,2]
[406000592,1771519758542,-1200.0,9.899e-05,2]
[406000593,1771519758562,-720.0,0.00010097,2]
[406000594,1771519758582,-864.0,0.00011107,2]
[406000595,1771519758600,-164.519411,0.00011887,2]
[406000596,1771519758619,-10000.0,0.00012054,2]
[406000597,1771519758638,-1000.0,0.00012217,2]
[406000598,1771519758657,-208.6507382,0.00012279,2]
[406000599,1771519758676,-4130.90076211,0.000129,2]
[406000600,1771519758694,-240.14925594,0.00013273,2]
[406000601,1771519758713,-317.81319698,0.00013273,2]
[406000602,1771519758731,-500.0,0.00013273,2]
[406000603,1771519758750,-556.36360047,0.00013273,2]
[406000604,1771519758772,-500.0,0.00013273,2]
[406000605,1771519758793,-451.05264262,0.00013273,2]
[406000606,1771519758812,-500.0,0.00013273,2]
[406000607,1771519758830,-500.0,0.00013273,2]
[406000608,1771519758849,-500.0,0.00013273,2]
[406000609,1771519758877,-361.12088928,0.00013273,2]
[406000610,1771519758900,-164.72622577,0.00013273,2]
[406000611,1771519758919,-500.0,0.00013439,2]
[406000612,1771519758941,-1000.0,0.00013439,2]
[406000613,1771519758962,-244.0,0.00013439,2]
[406000614,1771519758983,-458.45832785,0.00013698,2]
[406000615,1771519759002,-500.0,0.00013699,2]
[406000616,1771519759026,-500.0,0.00013699,2]
[406000617,1771519759048,-163.39504195,0.00013699,2]
[406000618,1771519759070,-500.0,0.00013699,2]
[406000619,1771519759091,-500.0,0.00013699,2]
[406000620,1771519759111,-500.0,0.00013699,2]
[406000621,1771519759131,-425.23616302,0.00013699,2]
[406000622,1771519759153,-500.0,0.00013699,2]
[406000623,1771519759173,-500.0,0.00013699,2]
[406000624,1771519759194,-500.0,0.00013699,2]
[406000625,1771519759213,-412.89503195,0.00013699,2]
[406000626,1771519759236,-500.0,0.00013699,2]
[406000627,1771519759259,-453.95510045,0.00013699,2]
[406000628,1771519759278,-500.0,0.00013713,2]
[406000629,1771519759298,-1000.0,0.00013821,2]
[406000630,1771519759320,-1135.96258974,0.00013821,2]
[406000631,1771519759341,-500.0,0.00013821,2]
[406000632,1771519759361,-1000.0,0.00013821,2]
[406000633,1771519759383,-908.34628525,0.00013821,2]
[406000634,1771519759403,-401.5607608,0.00013856,2]
[406000635,1771519759423,-500.0,0.00013987,2]
[406000636,1771519759444,-500.0,0.00014095,2]
[406000637,1771519759466,-583.17580175,0.00014095,2]
[406000638,1771519759485,-500.0,0.00014247,2]
[406000639,1771519759503,-500.0,0.00014247,2]
[406000640,1771519759522,-500.0,0.00014247,2]
[406000641,1771519759544,-6881.9669904,0.00014507,2]
[406000642,1771519759564,-505.07077741,0.00014783,2]
[406000665,1771519831830,-1000.0,8.82e-05,2]
[406000668,1771519831883,-480.82499999,8.82e-05,2]
[406000716,1771519838057,-3519.17500001,8.82e-05,2]
[406000718,1771519838068,-5000.0,8.909e-05,2]
[406000720,1771519838078,-1768.25302411,0.00011423,2]
[406000865,1771519840216,-397.06994016,0.00011423,2]
[406001291,1771519844456,-1321.121323,0.00011423,2]
[406002252,1771519854630,-236.21831869,0.00041262,21]
[406002256,1771519854657,-5482.3637925,0.00041262,25]
[406002259,1771519854685,-3000.0,0.00041262,120]
[406002263,1771519854711,-3004.0,0.00041262,120]
[406002266,1771519854737,-202.72092055,0.00041262,120]
[406002270,1771519854762,-202.72092054,0.00041262,120]
[406002273,1771519854787,-572.75739358,0.00041262,118]
[406002277,1771519854811,-528.1677,0.00041262,120]
[406002281,1771519854839,-528.1677,0.00041262,120]
[406002284,1771519854860,-236.90693993,0.00041262,120]
[406002288,1771519854884,-162.157595,0.00041262,120]
[406002292,1771519854910,-213.12523136,0.00041262,120]
[406002295,1771519854936,-274.07400796,0.00041262,120]
[406002299,1771519854962,-1181.87466874,0.00041262,120]
[406002303,1771519854988,-1414.55197531,0.00041262,120]
[406002306,1771519855014,-236.90693993,0.00041262,120]
[406002310,1771519855042,-168.86105237,0.00041262,120]
[406002313,1771519855068,-213.12523136,0.00041262,120]
[406002317,1771519855091,-1181.87466874,0.00041262,120]
[406002321,1771519855118,-274.07400796,0.00041262,120]
[406002325,1771519855148,-1414.55197531,0.00041262,120]
[406002328,1771519855173,-236.90693993,0.00041262,120]
[406002332,1771519855198,-213.12523136,0.00041262,120]
[406002335,1771519855223,-1181.87466874,0.00041262,120]
[406002339,1771519855250,-1414.55197531,0.00041262,120]
[406002343,1771519855274,-168.86105237,0.00041262,120]
[406002346,1771519855297,-274.07400796,0.00041262,120]
[406002350,1771519855320,-1181.87466874,0.00041262,120]
[406002353,1771519855344,-1414.55197531,0.00041262,120]
[406002357,1771519855367,-168.86105237,0.00041262,120]
[406002360,1771519855392,-1181.87466874,0.00041262,120]
[406002364,1771519855416,-1414.55197531,0.00041262,120]
[406002367,1771519855440,-168.86105237,0.00041262,120]
[406002371,1771519855463,-1181.87466874,0.00041262,120]
[406002374,1771519855487,-1414.55197531,0.00041262,120]
[406002378,1771519855511,-207.03617841,0.00041262,118]
[406002381,1771519855535,-168.86105237,0.00041262,120]
[406002385,1771519855560,-1181.87466874,0.00041262,120]
[406002389,1771519855585,-1414.55197531,0.00041262,120]
[406002392,1771519855608,-168.86105237,0.00041262,120]
[406002395,1771519855632,-1181.87466874,0.00041262,120]
[406002399,1771519855658,-1414.55197531,0.00041262,120]
[406002403,1771519855683,-168.86105237,0.00041262,120]
[406002406,1771519855706,-1181.87466874,0.00041262,120]
[406002410,1771519855731,-1414.55197531,0.00041262,120]
[406002413,1771519855754,-1181.87466874,0.00041262,120]
[406002417,1771519855778,-1414.55197531,0.00041262,120]
[406002420,1771519855801,-1181.87466874,0.00041262,120]
[406002424,1771519855826,-1414.55197531,0.00041262,120]
[406002428,1771519855849,-1181.87466874,0.00041262,120]
[406002431,1771519855876,-1414.55197531,0.00041262,120]
[406002435,1771519855900,-1181.87466874,0.00041262,120]
[406002451,1771519856048,-1414.55197531,0.00041262,120]
[406002455,1771519856074,-1181.87466874,0.00041262,120]
[406002458,1771519856098,-1181.87466874,0.00041262,120]
[406002462,1771519856128,-1414.55197531,0.00041262,120]
[406002466,1771519856154,-1181.87466874,0.00041262,120]
[406002469,1771519856179,-1181.87466874,0.00041262,120]
[406002473,1771519856203,-1414.55197531,0.00041262,120]
[406002474,1771519856227,-1181.87466874,0.00041262,120]
[406002475,1771519856251,-1414.55197531,0.00041262,120]
[406002476,1771519856273,-1181.87466874,0.00041262,120]
[406002477,1771519856297,-1414.55197531,0.00041262,120]
[406002478,1771519856319,-1181.87466874,0.00041262,120]
[406002479,1771519856343,-1414.55197531,0.00041262,120]
[406002481,1771519856366,-1181.87466874,0.00041262,120]
[406002485,1771519856393,-1414.55197531,0.00041262,120]
[406002488,1771519856417,-1181.87466874,0.00041262,120]
[406002492,1771519856441,-1414.55197531,0.00041262,120]
[406002495,1771519856466,-1181.87466874,0.00041262,120]
[406002499,1771519856490,-1414.55197531,0.00041262,120]
[406002502,1771519856513,-1181.87466874,0.00041262,120]
[406002506,1771519856538,-1414.55197531,0.00041262,120]
[406002509,1771519856560,-1181.87466874,0.00041262,120]
[406002513,1771519856584,-1414.55197531,0.00041262,120]
[406002516,1771519856606,-1181.87466874,0.00041262,120]
[406002519,1771519856632,-1414.55197531,0.00041262,120]
[406002523,1771519856655,-1181.87466874,0.00041262,120]
[406002526,1771519856679,-1414.55197531,0.00041262,120]
[406002530,1771519856702,-1181.87466874,0.00041262,120]
[406002533,1771519856725,-1414.55197531,0.00041262,120]
[406002537,1771519856747,-1181.87466874,0.00041262,120]
[406002540,1771519856770,-1414.55197531,0.00041262,120]
[406002544,1771519856793,-1181.87466874,0.00041262,120]
[406002547,1771519856816,-1414.55197531,0.00041262,120]
[406002551,1771519856840,-1414.55197531,0.00041262,120]
[406002554,1771519856864,-1414.55197531,0.00041262,120]
[406002558,1771519856891,-1414.55197531,0.00041262,120]